bitfinex/quotes_SOLUSD_20240922
["timestamp","ask_amount","ask_price","bid_price","bid_amount"]
[1726965364350,8.40752879,148.68,148.66,0.2508403]
[1726965365050,1.68177507,148.67,148.66,0.2508403]
[1726965365741,1.68177507,148.67,148.62,23.4285]
[1726965366053,1.68177507,148.67,148.66,0.1715478]
[1726965366054,6.7263,148.67,148.66,0.1715478]
[1726965366350,6.7263,148.67,148.62,0.427334]
[1726965366351,6.7272,148.65,148.62,0.427334]
[1726965366716,6.7268,148.66,148.62,0.427334]
[1726965367531,6.7268,148.66,148.62,7.155834]
[1726965368046,23.776884,148.67,148.62,7.155834]
[1726965368047,6.7263,148.67,148.62,7.155834]
[1726965368226,6.7258,148.68,148.63,6.7278]
[1726965369133,6.7264,148.67,148.62,7.155734]
[1726965369530,1.68190759,148.66,148.62,7.155734]
[1726965370449,1.68190759,148.66,148.62,0.427334]
[1726965370450,6.7278,148.64,148.62,0.427334]
[1726965370658,6.7272,148.65,148.62,0.427334]
[1726965370843,1.6821149,148.64,148.62,0.427334]
[1726965371145,6.7272,148.65,148.62,0.427334]
[1726965371331,1.68211372,148.64,148.62,0.427334]
[1726965372725,1.68211372,148.64,148.58,23.690402]
[1726965372726,16.75859,148.66,148.58,0.257002]
[1726965372926,0.12549,148.64,148.58,0.257002]
[1726965373440,6.729,148.61,148.58,0.257002]
[1726965373644,60.720374,148.65,148.58,6.987302]
[1726965373645,6.7285,148.63,148.58,6.987302]
[1726965374766,20.0,148.65,148.59,1.34601632]
[1726965375054,20.0,148.65,148.58,17.082202]
[1726965375353,26.7273,148.65,148.59,6.7295]
[1726965375653,1.68225567,148.64,148.59,6.7295]
[1726965376233,8.41005567,148.64,148.59,6.7295]
[1726965376434,6.7278,148.64,148.59,6.7295]
[1726965376634,6.7281,148.63,148.58,23.812402]
[1726965378367,20.0,148.65,148.58,0.257002]
[1726965378368,1.6824805,148.62,148.58,0.257002]
[1726965378951,23.776884,148.61,148.58,0.257002]
[1726965379135,1.68287258,148.6,148.58,0.257002]
[1726965379536,6.7299,148.59,148.58,0.257002]
[1726965379961,6.7295,148.6,148.58,0.257002]
[1726965380468,1.68284873,148.6,148.58,0.257002]
[1726965381230,8.41234873,148.6,148.58,0.257002]
[1726965382761,6.7299,148.59,148.58,0.257002]
[1726965383558,6.7307,148.58,148.53,7.159934]
[1726965383858,1.68308821,148.57,148.53,7.159934]
[1726965384039,6.7308,148.57,148.53,0.427334]
[1726965384954,1.68316961,148.56,148.53,0.427334]
[1726965385145,6.7308,148.57,148.53,0.427334]
[1726965386249,6.7305,148.58,148.53,0.427334]
[1726965387372,6.7305,148.58,148.54,6.7321]
[1726965388355,23.776884,148.59,148.53,0.427334]
[1726965388563,26.7308,148.57,148.53,0.427334]
[1726965390956,6.7304,148.58,148.53,0.427334]
[1726965392366,6.7304,148.58,148.54,6.732]
[1726965393275,1.68306695,148.57,148.53,7.159834]
[1726965394271,6.7314,148.56,148.53,0.427334]
[1726965394570,1.6832088,148.55,148.53,0.427334]
[1726965395475,6.7309,148.57,148.53,0.427334]
[1726965399367,1.68320611,148.56,148.53,0.427334]
[1726965400381,1.68342088,148.55,148.53,0.427334]
[1726965400557,6.7321,148.54,148.53,0.427334]
[1726965401079,20.0,148.55,148.53,0.427334]
[1726965401464,1.68329786,148.54,148.53,0.427334]
[1726965401665,20.0,148.55,148.53,0.427334]
[1726965402178,8.41539732,148.54,148.53,0.427334]
[1726965402364,20.12549,148.59,148.53,0.427334]
[1726965402365,6.7318,148.55,148.53,0.427334]
[1726965402967,1.68335796,148.54,148.53,0.427334]
[1726965403275,52.44332196,148.54,148.53,0.427334]
[1726965403477,52.44332196,148.54,148.49,0.257002]
[1726965403478,6.7332,148.52,148.49,0.257002]
[1726965403790,1.68373247,148.51,148.49,0.257002]
[1726965404759,8.41723247,148.51,148.49,0.257002]
[1726965404959,6.7335,148.51,148.49,0.257002]
[1726965405171,6.7335,148.51,148.49,0.2533498]
[1726965405678,6.7331,148.52,148.49,0.2533498]
[1726965406467,20.0,148.53,148.49,0.2533498]
[1726965406792,20.0,148.54,148.5,6.7336]
[1726965407589,26.7322,148.54,148.5,6.7336]
[1726965408289,8.4165043,148.53,148.49,0.2533498]
[1726965408466,6.7331,148.52,148.49,0.2533498]
[1726965408668,1.68372118,148.51,148.49,0.2533498]
[1726965408880,1.68371009,148.5,148.49,0.2533498]
[1726965409287,6.7327,148.53,148.49,0.2533498]
[1726965410374,26.7322,148.54,148.49,6.9876498]
[1726965412279,1.68351918,148.53,148.49,6.9876498]
[1726965412584,1.68351918,148.53,148.49,0.2533498]
[1726965412585,8.41631918,148.53,148.49,0.2533498]
[1726965413194,6.7331,148.52,148.49,0.2533498]
[1726965413368,1.68371392,148.51,148.49,0.2533498]
[1726965414777,6.7331,148.52,148.49,0.2533498]
[1726965416595,6.7336,148.51,148.49,0.2533498]
[1726965417711,6.734,148.5,148.49,0.2533498]
[1726965419095,6.7336,148.51,148.49,0.2533498]
[1726965421770,6.7331,148.52,148.49,0.2533498]
[1726965421975,20.0,148.51,148.49,0.2533498]
[1726965422891,6.7326,148.53,148.49,0.2533498]
[1726965423193,26.7322,148.54,148.49,6.9876498]
[1726965423590,6.7327,148.53,148.49,6.9876498]
[1726965423791,20.0,148.52,148.49,6.9876498]
[1726965423992,20.0,148.52,148.49,0.2533498]
[1726965425301,20.0,148.52,148.49,6.9877498]
[1726965426210,20.0,148.52,148.49,0.2533498]
[1726965427991,6.7322,148.54,148.49,0.2533498]
[1726965428189,50.508284,148.56,148.51,6.7335]
[1726965428376,26.7314,148.56,148.51,6.7335]
[1726965428574,6.7318,148.55,148.51,23.5665]
[1726965428786,20.0,148.54,148.51,23.5665]
[1726965428987,20.0,148.54,148.51,16.833]
[1726965429580,1.68339928,148.53,148.5,6.7338]
[1726965430118,26.7322,148.54,148.5,6.7338]
[1726965430496,6.7317,148.55,148.51,6.7335]
[1726965430679,16.35638975,148.59,148.55,6.7315]
[1726965430876,6.09484928,148.62,148.56,6.7309]
[1726965431097,0.0438543,148.62,148.56,6.7309]
[1726965431301,0.0438543,148.62,148.59,6.7297]
[1726965431685,0.0438543,148.62,148.57,23.5564]
[1726965432583,0.0438543,148.62,148.61,6.729]
[1726965433078,0.0438543,148.62,148.61,13.0732]
[1726965433801,0.0438543,148.62,148.61,6.3442]
[1726965435481,0.0438543,148.62,148.61,13.0732]
[1726965440883,0.0438543,148.62,148.61,13.19869]
[1726965445708,0.0438543,148.62,148.61,13.32418]
[1726965446683,0.0438543,148.62,148.61,13.19869]
[1726965447112,0.0438543,148.62,148.61,13.0732]
[1726965448497,0.0438543,148.62,148.6,6.7293]
[1726965449098,0.0438543,148.62,148.61,6.729]
[1726965450507,0.0438543,148.62,148.59,16.8236]
[1726965450719,0.0438543,148.62,148.59,23.5534]
[1726965453101,0.0438543,148.62,148.59,16.8236]
[1726965453307,0.0438543,148.62,148.59,23.5535]
[1726965457718,0.0438543,148.62,148.58,6.7303]
[1726965458011,0.0438543,148.62,148.59,6.7297]
[1726965458318,0.0438543,148.62,148.6,6.7293]
[1726965459190,0.0438543,148.62,148.61,8.07470009]
[1726965460594,0.0438543,148.62,148.61,6.729]
[1726965463221,0.0438543,148.62,148.61,8.07459302]
[1726965463920,0.0438543,148.62,148.61,6.729]
[1726965464403,0.0438543,148.62,148.61,8.07458352]
[1726965465719,7.0237041,148.67,148.62,6.7283]
[1726965465720,6.7265,148.67,148.62,6.7283]
[1726965466018,0.2487884,148.66,148.62,6.7283]
[1726965466701,0.2487884,148.66,148.63,1.34558164]
[1726965466903,0.2487884,148.66,148.65,6.7272]
[1726965467102,0.2487884,148.66,148.65,8.07250141]
[1726965467316,0.2487884,148.66,148.65,8.19799141]
[1726965467992,0.2487884,148.66,148.65,32.10036541]
[1726965470618,0.2487884,148.66,148.65,30.755064]
[1726965473104,0.2487884,148.66,148.65,6.85269]
[1726965473920,0.2487884,148.66,148.65,6.7272]
[1726965474302,0.2487884,148.66,148.64,16.8185]
[1726965475422,0.2487884,148.66,148.65,6.7272]
[1726965475629,0.2487884,148.66,148.64,23.5461]
[1726965476301,0.2487884,148.66,148.65,6.7272]
[1726965477325,0.2487884,148.66,148.65,8.0724566]
[1726965479236,0.2487884,148.66,148.6,0.25098]
[1726965479406,0.2487884,148.66,148.62,6.7282]
[1726965480722,0.2487884,148.66,148.61,16.8221]
[1726965481031,6.7273,148.65,148.61,16.8221]
[1726965481205,6.7276,148.64,148.6,6.7292]
[1726965481526,6.7281,148.63,148.59,6.7298]
[1726965481728,8.41022604,148.63,148.58,16.8255]
[1726965481932,6.8042972,148.63,148.58,16.8255]
[1726965482111,22.0396972,148.63,148.58,16.8255]
[1726965483232,15.3115972,148.63,148.59,6.7299]
[1726965483535,0.0761972,148.63,148.58,16.8255]
[1726965483755,0.0761972,148.63,148.61,6.7289]
[1726965484041,0.0761972,148.63,148.62,6.7285]
[1726965485437,0.0761972,148.63,148.61,6.7289]
[1726965485608,0.0761972,148.63,148.6,23.5522]
[1726965488311,0.0761972,148.63,148.61,6.7289]
[1726965489522,0.0761972,148.63,148.62,6.7285]
[1726965489835,0.0761972,148.63,148.62,8.07413658]
[1726965490619,0.0761972,148.63,148.62,6.7285]
[1726965492516,0.0761972,148.63,148.61,6.7289]
[1726965492839,0.0761972,148.63,148.62,8.0741289]
[1726965493944,0.0761972,148.63,148.62,6.7285]
[1726965494841,0.0761972,148.63,148.62,30.756364]
[1726965496243,0.0761972,148.63,148.62,32.10140994]
[1726965496818,0.0761972,148.63,148.62,30.756364]
[1726965497020,0.0761972,148.63,148.62,6.85399]
[1726965497242,0.0761972,148.63,148.62,8.19925492]
[1726965498340,0.0761972,148.63,148.62,30.756364]
[1726965498721,0.0761972,148.63,148.62,6.97948]
[1726965499334,0.0761972,148.63,148.62,32.10163683]
[1726965500446,0.0761972,148.63,148.62,30.756364]
[1726965501818,0.0761972,148.63,148.62,6.97948]
[1726965502146,0.0761972,148.63,148.62,6.85399]
[1726965502349,0.0761972,148.63,148.62,6.7285]
[1726965507648,0.0761972,148.63,148.61,6.7289]
[1726965515967,0.0761972,148.63,148.62,8.07412561]
[1726965516180,0.0761972,148.63,148.6,23.552]
[1726965516837,0.0761972,148.63,148.61,6.7289]
[1726965518244,0.0761972,148.63,148.61,8.07452273]
[1726965518545,0.0761972,148.63,148.61,6.7289]
[1726965520849,0.0761972,148.63,148.62,6.7285]
[1726965524663,0.0761972,148.63,148.61,6.7289]
[1726965528369,0.0761972,148.63,148.6,23.5523]
[1726965529892,0.0761972,148.63,148.57,16.8264]
[1726965530068,0.0761972,148.63,148.58,0.12549]
[1726965530463,0.0761972,148.63,148.6,6.7293]
[1726965538797,15.746,148.62,148.56,16.8275]
[1726965538968,1.68253353,148.61,148.56,23.5587]
[1726965539896,15.8221972,148.62,148.56,23.5587]
[1726965540504,6.7295,148.6,148.56,23.5587]
[1726965543481,1.68265374,148.59,148.53,16.8313]
[1726965543883,6.7303,148.58,148.51,33.8388912]
[1726965544202,1.68283601,148.57,148.51,33.8388912]
[1726965544503,1.68289274,148.6,148.51,33.8388912]
[1726965544705,20.0,148.58,148.51,0.1725912]
[1726965544996,6.7316,148.56,148.51,0.1725912]
[1726965545170,8.41486166,148.55,148.51,6.9060912]
[1726965545366,1.6831829,148.54,148.51,6.9060912]
[1726965545604,1.6831829,148.54,148.51,0.1725912]
[1726965546811,1.68319141,148.54,148.51,0.1725912]
[1726965546970,20.0,148.56,148.51,0.1725912]
[1726965548298,6.7321,148.55,148.51,0.1725912]
[1726965548897,1.68335121,148.54,148.51,0.1725912]
[1726965549608,6.7321,148.55,148.51,0.1725912]
[1726965550108,20.0,148.56,148.51,0.1725912]
[1726965551075,6.7318,148.55,148.51,0.1725912]
[1726965552674,1.68334678,148.54,148.51,0.1725912]
[1726965552902,6.733,148.52,148.51,0.1725912]
[1726965553209,8.41659488,148.52,148.51,0.1725912]
[1726965553502,28.41659488,148.52,148.51,0.1725912]
[1726965561297,20.0,148.52,148.51,0.1725912]
[1726965564300,29.34730184,148.57,148.52,6.7327]
[1726965564604,15.6112,148.57,148.52,6.7327]
[1726965564813,6.7314,148.56,148.51,6.9059912]
[1726965565199,6.7318,148.55,148.51,6.9059912]
[1726965567724,6.7304,148.58,148.52,16.8321]
[1726965567901,15.9622,148.61,148.52,16.8321]
[1726965568101,6.73,148.59,148.54,6.7321]
[1726965569224,20.0,148.58,148.54,6.7321]
[1726965569735,1.68281338,148.57,148.53,6.7325]
[1726965569906,8.41381338,148.57,148.52,23.5651]
[1726965570105,6.7325,148.54,148.51,0.1725912]
[1726965570408,1.68328735,148.53,148.51,0.1725912]
[1726965571230,6.7317,148.55,148.51,0.1725912]
[1726965571408,1.68329937,148.54,148.51,0.1725912]
[1726965578230,8.41549937,148.54,148.51,0.1725912]
[1726965578546,1.68339043,148.53,148.51,0.1725912]
[1726965578726,26.733,148.52,148.51,0.1725912]
[1726965580328,20.0,148.52,148.51,0.1725912]
[1726965580523,6.7321,148.54,148.51,0.1725912]
[1726965580832,20.0,148.53,148.51,0.1725912]
[1726965581033,20.0,148.54,148.51,0.1725912]
[1726965582316,26.7324,148.54,148.51,0.1725912]
[1726965583430,20.0,148.54,148.51,0.1725912]
[1726965583841,21.68333621,148.54,148.51,0.1725912]
[1726965584214,28.41553621,148.54,148.51,0.1725912]
[1726965586334,20.0,148.52,148.51,0.1725912]
[1726965586532,28.41659499,148.52,148.51,0.1725912]
[1726965587539,20.0,148.52,148.51,0.1725912]
[1726965599153,6.7322,148.54,148.51,0.1725912]
[1726965599328,6.7314,148.56,148.51,23.7397912]
[1726965600459,22.9435,148.59,148.53,16.8309]
[1726965600625,16.2135,148.59,148.54,1.34624281]
[1726965600830,16.2135,148.59,148.55,6.7317]
[1726965601044,6.7298,148.6,148.55,6.7317]
[1726965601552,6.7299,148.59,148.55,6.7317]
[1726965603756,6.7299,148.59,148.54,6.7321]
[1726965604455,8.41319203,148.58,148.53,23.5634]
[1726965604647,6.7304,148.58,148.53,23.5634]
[1726965605561,6.7299,148.59,148.54,8.07842985]
[1726965605847,6.7295,148.6,148.55,6.7315]
[1726965606055,20.0,148.59,148.56,6.7312]
[1726965606635,20.0,148.6,148.56,6.7312]
[1726965606851,26.7295,148.6,148.56,6.7312]
[1726965607857,26.7295,148.6,148.55,23.5602]
[1726965608061,1.68267878,148.59,148.53,6.3419]
[1726965608229,8.41257878,148.59,148.54,6.732]
[1726965608429,6.7299,148.59,148.54,6.732]
[1726965611731,20.0,148.6,148.55,18.17481051]
[1726965611950,20.0,148.6,148.56,6.7309]
[1726965613165,6.7295,148.6,148.55,23.5602]
[1726965613362,1.68262045,148.61,148.58,6.7303]
[1726965613543,20.0,148.6,148.56,6.7312]
[1726965616545,6.7295,148.6,148.56,6.7312]
[1726965618458,26.8049972,148.62,148.55,16.8286]
[1726965618667,26.8049972,148.62,148.58,6.73]
[1726965618668,20.0761972,148.62,148.58,6.73]
[1726965618835,0.0761972,148.62,148.59,8.07560735]
[1726965619035,0.0761972,148.62,148.59,18.17000735]
[1726965619460,0.0761972,148.62,148.61,6.729]
[1726965619766,0.0761972,148.62,148.61,8.07456751]
[1726965620572,0.0761972,148.62,148.61,38.50894151]
[1726965621071,0.0761972,148.62,148.61,37.163374]
[1726965621962,0.0761972,148.62,148.61,37.288864]
[1726965622469,0.0761972,148.62,148.61,13.38649]
[1726965622970,0.0761972,148.62,148.61,13.261]
[1726965624852,0.0761972,148.62,148.6,6.7293]
[1726965625061,0.0761972,148.62,148.59,39.2484]
[1726965626761,0.0761972,148.62,148.59,23.554]
[1726965628343,0.0761972,148.62,148.57,6.532]
[1726965628548,6.8047972,148.62,148.58,6.7303]
[1726965629769,6.8047972,148.62,148.57,6.7307]
[1726965633149,6.7291,148.61,148.56,39.253]
[1726965633351,0.0761972,148.62,148.56,39.253]
[1726965633352,6.7295,148.6,148.56,23.5586]
[1726965633574,6.7295,148.6,148.56,16.8277]
[1726965638167,0.0761972,148.62,148.57,1.34603312]
[1726965638363,20.0,148.61,148.57,8.07643312]
[1726965638563,20.0,148.61,148.57,6.7304]
[1726965639862,0.0761972,148.62,148.58,18.17066994]
[1726965640182,20.0761972,148.62,148.58,23.555]
[1726965640379,26.8046972,148.62,148.58,23.555]
[1726965642484,26.8046972,148.62,148.59,1.34586879]
[1726965642914,26.8046972,148.62,148.58,23.555]
[1726965646994,20.0761972,148.62,148.59,1.34582624]
[1726965648101,20.0761972,148.62,148.58,23.555]
[1726965648602,6.8046972,148.62,148.58,23.555]
[1726965654515,6.729,148.61,148.58,16.8248]
[1726965654708,6.7295,148.6,148.56,6.7312]
[1726965654911,6.7295,148.6,148.55,16.8288]
[1726965655088,6.7295,148.6,148.55,23.5601]
[1726965655613,1.75874238,148.62,148.55,23.5601]
[1726965655614,6.73,148.59,148.55,23.5601]
[1726965656101,6.7304,148.58,148.53,6.7323]
[1726965656977,21.68267669,148.6,148.53,6.7323]
[1726965657177,6.7304,148.58,148.54,6.7321]
[1726965661292,6.7308,148.57,148.52,23.5651]
[1726965661988,6.7308,148.57,148.53,6.7325]
[1726965665403,6.7308,148.57,148.52,23.5653]
[1726965666197,6.7308,148.57,148.53,6.7325]
[1726965666398,20.0,148.58,148.54,8.0782873]
[1726965666801,20.0,148.58,148.54,6.732]
[1726965667487,20.0,148.58,148.52,16.8324]
[1726965667694,8.41370716,148.57,148.53,6.7325]
[1726965669512,6.7309,148.57,148.53,6.7325]
[1726965672426,6.7314,148.56,148.52,23.5654]
[1726965672593,6.7314,148.56,148.52,16.8324]
[1726965672793,6.7318,148.55,148.51,6.9059912]
[1726965673311,8.4149024,148.55,148.51,6.9059912]
[1726965674322,6.7318,148.55,148.51,0.1725912]
[1726965674618,8.41497074,148.55,148.51,0.1725912]
[1726965679107,6.7318,148.55,148.51,0.1725912]
[1726965679920,15.6888,148.56,148.51,17.0056912]
[1726965680098,21.5933,148.6,148.52,0.12549]
[1726965680300,21.5933,148.6,148.53,1.34618454]
[1726965681514,6.73,148.59,148.55,6.7316]
[1726965681818,6.73,148.59,148.54,6.732]
[1726965682110,8.41323477,148.58,148.53,23.5635]
[1726965682305,1.68273477,148.58,148.53,16.831]
[1726965682507,6.7312,148.57,148.53,16.831]
[1726965687827,20.0,148.59,148.51,6.9059912]
[1726965687828,6.7318,148.55,148.51,6.9059912]
[1726965688819,1.68305102,148.54,148.51,0.1725912]
[1726965689518,8.41535102,148.54,148.51,0.1725912]
[1726965689819,6.733,148.52,148.51,0.1725912]
[1726965690026,28.41659307,148.52,148.51,0.1725912]
[1726965691030,52.19347707,148.52,148.51,0.1725912]
[1726965691520,52.44445707,148.52,148.51,0.1725912]
[1726965694724,6.735,148.48,148.46,0.2487884]
[1726965695018,1.68397062,148.47,148.46,0.2487884]
[1726965695599,8.41927062,148.47,148.46,0.2487884]
[1726965695807,6.7353,148.47,148.46,0.2487884]
[1726965696314,26.7353,148.47,148.46,0.2487884]
[1726965697829,6.7362,148.45,148.44,0.170332]
[1726965698006,6.7371,148.43,148.42,0.2487884]
[1726965698212,28.42171906,148.43,148.42,0.2487884]
[1726965700706,26.7371,148.43,148.42,0.2487884]
[1726965701529,20.0,148.43,148.42,0.2487884]
[1726965702308,16.0456,148.49,148.42,6.9861884]
[1726965702512,6.7349,148.48,148.43,6.7371]
[1726965702709,6.7354,148.47,148.42,6.9862884]
[1726965703433,6.7354,148.47,148.43,6.7371]
[1726965703628,16.0456,148.49,148.43,6.7371]
[1726965703813,20.0,148.47,148.43,6.7371]
[1726965706729,21.68405682,148.47,148.43,6.7371]
[1726965706933,20.0,148.47,148.43,6.7371]
[1726965708321,13.72382148,148.5,148.45,6.7362]
[1726965708516,20.0,148.49,148.45,6.7362]
[1726965708925,1.68396652,148.48,148.42,17.0920884]
[1726965709224,6.7354,148.47,148.43,6.7369]
[1726965709815,1.68406083,148.46,148.42,23.8295884]
[1726965710519,6.7354,148.47,148.42,23.8295884]
[1726965710714,20.0,148.49,148.45,6.736]
[1726965710918,20.0,148.49,148.44,16.8412]
[1726965710919,26.7348,148.49,148.44,23.5778]
[1726965711127,6.7349,148.48,148.44,23.5778]
[1726965712227,6.7349,148.48,148.44,16.8412]
[1726965716613,6.7354,148.47,148.44,16.8412]
[1726965717010,6.7354,148.47,148.43,6.737]
[1726965717436,6.735,148.48,148.43,6.737]
[1726965722629,6.9924983,148.51,148.47,6.7353]
[1726965722825,20.0,148.5,148.47,6.7353]
[1726965723130,15.0079,148.53,148.47,6.7353]
[1726965723329,6.7334,148.52,148.47,6.7353]
[1726965723538,6.7336,148.51,148.47,6.7353]
[1726965724149,6.9890311,148.55,148.48,1.34690011]
[1726965724329,6.7317,148.56,148.5,6.7339]
[1726965724846,6.7319,148.55,148.5,6.7339]
[1726965725149,6.7322,148.54,148.49,23.5693]
[1726965725344,6.7318,148.55,148.5,8.08050046]
[1726965725745,20.0,148.53,148.49,16.835]
[1726965727245,20.0,148.53,148.49,23.5693]
[1726965727447,20.0,148.53,148.5,6.7339]
[1726965727748,0.2487884,148.57,148.51,1.34660828]
[1726965728441,6.9796884,148.57,148.52,16.8322]
[1726965728650,6.9796884,148.57,148.52,23.5648]
[1726965728947,6.9796884,148.57,148.53,1.34635835]
[1726965728948,6.9795884,148.57,148.53,1.34635835]
[1726965729348,6.9795884,148.57,148.52,23.5648]
[1726965734037,0.2487884,148.57,148.54,6.7321]
[1726965734359,0.2487884,148.57,148.55,8.07776068]
[1726965734537,0.2487884,148.57,148.56,38.62634252]
[1726965735130,0.2487884,148.57,148.56,37.280264]
[1726965735842,0.2487884,148.57,148.56,13.2524]
[1726965736354,0.2487884,148.57,148.56,6.5212]
[1726965736532,0.2487884,148.57,148.56,13.2524]
[1726965738460,0.2487884,148.57,148.56,6.5212]
[1726965739643,0.2487884,148.57,148.53,15.4566]
[1726965740863,0.2487884,148.57,148.55,6.7313]
[1726965741038,0.2487884,148.57,148.56,1.34599515]
[1726965742058,0.2487884,148.57,148.55,6.7313]
[1726965744871,0.2487884,148.57,148.54,23.5623]
[1726965745047,0.2487884,148.57,148.52,6.5212]
[1726965745457,0.2487884,148.57,148.53,8.07883531]
[1726965746560,0.2487884,148.57,148.53,6.7326]
[1726965746956,0.2487884,148.57,148.51,16.8337]
[1726965748273,6.7316,148.56,148.51,23.5669]
[1726965748969,6.732,148.55,148.51,16.8337]
[1726965749176,0.2487884,148.57,148.51,16.8337]
[1726965750079,6.9796884,148.57,148.53,6.7326]
[1726965750263,6.9796884,148.57,148.51,16.8337]
[1726965751274,6.9796884,148.57,148.52,6.733]
[1726965751889,6.7313,148.56,148.52,6.733]
[1726965753072,0.2487884,148.57,148.53,6.7322]
[1726965753281,0.2487884,148.57,148.54,1.34617676]
[1726965753461,0.2487884,148.57,148.56,6.7312]
[1726965753654,0.2487884,148.57,148.56,1.34594728]
[1726965754187,0.2487884,148.57,148.55,23.5603]
[1726965756373,0.2487884,148.57,148.54,6.0598]
[1726965756374,0.2487884,148.57,148.52,16.8325]
[1726965757276,0.2487884,148.57,148.53,6.7325]
[1726965759463,6.9795884,148.57,148.52,23.5655]
[1726965759668,6.7313,148.56,148.52,23.5655]
[1726965761915,1.68289762,148.55,148.5,6.7338]
[1726965762079,1.93187265,148.57,148.5,6.7338]
[1726965763077,6.7323,148.54,148.49,23.5701]
[1726965763285,21.68321155,148.55,148.49,23.5701]
[1726965763500,21.68321155,148.55,148.47,0.12549]
[1726965763686,6.7331,148.52,148.48,6.7347]
[1726965764000,6.7327,148.53,148.48,6.7347]
[1726965764465,6.7327,148.53,148.49,6.7343]
[1726965767088,8.41592685,148.53,148.48,6.7348]
[1726965767275,6.7327,148.53,148.48,6.7348]
[1726965768973,6.7331,148.52,148.48,6.7348]
[1726965769174,6.7327,148.53,148.49,8.08101786]
[1726965770200,20.0,148.55,148.51,6.7331]
[1726965770873,26.7318,148.55,148.5,23.5682]
[1726965772389,6.7323,148.54,148.5,23.5682]
[1726965777799,6.7323,148.54,148.5,16.8343]
[1726965780690,6.7331,148.52,148.46,6.0598]
[1726965780875,1.68323655,148.53,148.46,6.0598]
[1726965781079,6.7336,148.51,148.43,20.0]
[1726965781488,1.68323655,148.53,148.42,6.3229884]
[1726965781690,16.8312,148.54,148.42,6.3229884]
[1726965781691,6.734,148.5,148.42,6.3229884]
[1726965781992,6.7336,148.51,148.43,14.39715419]
[1726965783091,6.7332,148.52,148.44,23.776884]
[1726965783400,6.7326,148.53,148.45,14.64782684]
[1726965783606,6.7326,148.53,148.45,13.30111235]
[1726965783607,20.0,148.52,148.45,13.30111235]
[1726965784097,20.0,148.52,148.45,0.25098]
[1726965784320,6.7339,148.51,148.45,0.12549]
[1726965784478,8.41763424,148.5,148.42,6.3229884]
[1726965784803,6.7341,148.5,148.43,0.12549]
[1726965785700,6.7341,148.5,148.43,0.25098]
[1726965787902,6.7336,148.51,148.43,0.25098]
[1726965788081,20.0,148.54,148.43,24.027864]
[1726965788284,20.0,148.54,148.45,0.25098]
[1726965788497,20.0,148.54,148.46,1.34673274]
[1726965789291,20.0,148.52,148.45,0.25098]
[1726965789499,20.0,148.52,148.44,0.25098]
[1726965790589,6.7331,148.52,148.44,0.25098]
[1726965790788,20.0,148.51,148.44,0.25098]
[1726965793048,6.7331,148.52,148.44,0.25098]
[1726965796603,6.7331,148.52,148.45,1.34675135]
[1726965796801,6.7331,148.52,148.46,0.12549]
[1726965797011,6.7331,148.52,148.47,1.34675163]
[1726965797598,6.7331,148.52,148.46,0.12549]
[1726965801908,6.7331,148.52,148.45,23.902374]
[1726965802110,6.7331,148.52,148.46,1.34675449]
[1726965803402,20.0,148.52,148.47,0.12549]
[1726965803707,20.0,148.52,148.48,1.34663656]
[1726965804312,20.0,148.53,148.48,1.34663656]
[1726965805213,6.7322,148.54,148.48,1.34663656]
[1726965805397,20.0,148.54,148.49,0.12549]
[1726965805624,6.9796884,148.57,148.5,1.34648014]
[1726965806119,6.9796884,148.57,148.51,0.12549]
[1726965806319,0.2487884,148.57,148.51,24.027864]
[1726965806519,0.2487884,148.57,148.53,0.25098]
[1726965806816,0.2487884,148.57,148.54,1.34606614]
[1726965807999,0.2487884,148.57,148.53,0.25098]
[1726965809611,0.2487884,148.57,148.52,22.0006]
[1726965809813,6.7313,148.56,148.48,21.3466]
[1726965811014,6.7313,148.56,148.49,24.027864]
[1726965811825,21.68297399,148.55,148.48,21.3466]
[1726965812321,20.0,148.55,148.48,21.3466]